Cogmind - Beta 13 @@@ ROGUE MODE // 2024.04.07 @ 21:10:51 Player: Patryk Z Result: Destroyed by G-34 Mercenary with Small Laser Performance ------------- Evolutions (1) 500 Regions Visited (3) 600 Robots Destroyed (27) 135 Value Destroyed (534) 534 Prototype IDs (0) 0 Alien Tech Used (0) 0 Bonus (18) 18 TOTAL SCORE: 1787 Bonus ------- High Alert Combat Kills 18 Cogmind --------- Core Integrity 0/400 Matter 3/300 Energy 85/100 System Corruption 0% Temperature Cool (6) Movement Core (300) Ox5 Location -9/Storage Parts ------- > --- POWER (1) -------- (None) > --- PROPULSION (2) --- (None) > --- UTILITY (3) ------ Drone Bay (1/2) Drone Bay (0/2) Drone Bay (2/2) > --- WEAPON (3) ------- (None) > --- INVENTORY (5) ---- Structural Scanner Drone Bay (2/2) Peak State ------------ > --- POWER ------------ (None) > --- PROPULSION ------- (None) > --- UTILITY ---------- Drone Bay Drone Bay Drone Bay > --- WEAPON ----------- (None) > --- INVENTORY -------- Structural Scanner Drone Bay Drone Bay [Rating: 16] Favorites ----------- Power Ion Engine Engine Ion Engine Power Core Light Nuclear Core Propulsion Light Treads Treads Light Treads Leg Aluminum Leg Utility Small Storage Unit Device Structural Scanner Storage Small Storage Unit Protection Hardened Light Armor Plating Weapon Light Assault Rifle Energy Gun Small Laser Energy Cannon Beam Cannon Ballistic Gun Light Assault Rifle Launcher Rocket Launcher Build | -11 -10 -9 -9 ------- Run | Yrd Mat Mat Sto Slots Evolved 2 | . . 2 . Power . | . . . . Propulsion . | . . . . Utility 1 | . . 1 . Weapon 1 | . . 1 . Parts Attached 31 | 6 7 12 6 Power 3 | 1 2 . . Engine 2 | 1 1 . . Core 1 | . 1 . . Reactor . | . . . . Propulsion 4 | 2 . 2 . Treads 2 | 2 . . . Leg 2 | . . 2 . Wheel . | . . . . Hover . | . . . . Flight . | . . . . Utility 12 | 1 3 2 6 Device 7 | . 1 . 6 Storage 1 | 1 . . . Processor . | . . . . Hackware . | . . . . Protection 4 | . 2 2 . Artifact . | . . . . Weapon 12 | 2 2 8 . Energy Gun 1 | . . 1 . Energy Cannon 1 | . . 1 . Ballistic Gun 2 | 2 . . . Ballistic Cannon . | . . . . Launcher 8 | . 2 6 . Special Weapon . | . . . . Impact Weapon . | . . . . Slashing Weapon . | . . . . Piercing Weapon . | . . . . Special Melee Weapon . | . . . . Unidentified Prototypes . | . . . . Parts Lost 16 | . . 14 2 Power 1 | . . 1 . Propulsion 4 | . . 4 . Utility 5 | . . 3 2 Weapon 6 | . . 6 . Highest Loss Streak 12 | . . 12 2 To Critical Strikes . | . . . . Average Slot Usage (%) 81 | . 97 75 26 Engine 4 | . 4 6 . Core 5 | . 9 . . Treads 20 | . 28 14 . Device 5 | . 6 . 18 Storage 12 | . 14 11 8 Protection 8 | . 5 18 . Energy Cannon 1 | . . 5 . Ballistic Gun 4 | . 7 . . Launcher 16 | . 20 16 . Naked Turns . | . . . . Heaviest Build 30 | 12 23 30 18 Greatest Support 40 | 40 40 40 3 Greatest Overweight (x) 5 | . . 5 5 Average Overweight (x) . | . . . 3 Largest Inventory Capacity 8 | 8 8 8 8 Average Capacity 7 | 7 8 8 7 Most Carried 8 | 4 8 7 8 Average Carried 3 | 2 6 5 4 Final Capacity 8 | 8 8 8 5 Final Carried 8 | 3 8 1 2 Class Distribution -------------------- 97% | Mutant Dominant Class ---------------- Mutant | -10/Materials Mutant | -9/Materials Mutant | -9/Storage Resources | -11 -10 -9 -9 ----------- Run | Yrd Mat Mat Sto Matter Collected 549 | 233 137 154 25 Remotely . | . . . . Salvage Created 387 | . 150 237 . Parts 47 | . 14 33 . Haulers Intercepted . | . . . . Recyclers Shooed . | . . . . Parts Field Recycled . | . . . . Retrieved Matter . | . . . . Parts Self-Destructed . | . . . . Prevented . | . . . . Kills | -11 -10 -9 -9 ------- Run | Yrd Mat Mat Sto Combat Hostiles Destroyed 13 | . 2 11 . Guns 2 | . 2 . . AOE 11 | . . 11 . Classes Destroyed 7 | . 4 3 . Worker 1 | . 1 . . Builder 9 | . 2 7 . Operator 1 | . . 1 . Watcher 3 | . 2 1 . Swarmer 3 | . . 3 . Grunt 9 | . 2 7 . Sentry 1 | . . 1 . Best Kill Streak 9 | . 3 9 . Combat Bots Only 5 | . 2 5 . Max Kills in Single Turn 4 | . 3 4 . Gunslinging . | . . . . Exploded 4 | . . 4 . Melee . | . . . . Uniques/NPCs Destroyed . | . . . . Combat | -11 -10 -9 -9 -------- Run | Yrd Mat Mat Sto Hostile Shots Fired 301 | . 12 250 39 Missed 86 | . 3 75 8 Damage Taken 2455 | . 211 1834 410 Core 418 | . 12 299 107 Absorbed by Shields . | . . . . Core Remaining (%) 97 | 100 95 . . Volleys Fired 38 | . 13 25 . Largest 3 | . 2 3 . Hottest 126 | . 66 126 . Shots Fired 76 | . 26 50 . Gun 25 | . 20 5 . Cannon 15 | . . 15 . Launcher 36 | . 6 30 . Special . | . . . . Kinetic 20 | . 20 . . Thermal 20 | . . 20 . Explosive 36 | . 6 30 . Electromagnetic . | . . . . Robot Hit Streak 16 | . 16 7 . Robot Miss Streak 4 | . 3 4 . Penetration Max . | . . . . Secondary Targets 1 | . 1 . . Max Gunslinging Chain 1 | . 1 . . Shots Hit Robots 47 | . 18 29 . Core Hits 46 | . 13 33 . Critical Kills . | . . . . Critical Parts Destroyed . | . . . . Critical Strikes . | . . . . Melee Attacks . | . . . . Impact . | . . . . Slashing . | . . . . Piercing . | . . . . Sneak Attacks . | . . . . Combat Hostiles . | . . . . Follow-up Attacks . | . . . . Damage Inflicted 2239 | . 413 1826 . Guns 175 | . 120 55 . Cannons 156 | . . 156 . Explosions 1908 | . 293 1615 . Melee . | . . . . Ramming . | . . . . Kinetic 120 | . 120 . . Thermal 211 | . . 211 . Explosive 1908 | . 293 1615 . Electromagnetic . | . . . . Impact . | . . . . Slashing . | . . . . Piercing . | . . . . Highest Corruption . | . . . . Average Corruption . | . . . . Corruption Purged . | . . . . Corruption Blocked . | . . . . Overload Shots . | . . . . Overflow Damage 16 | . 2 14 . Projectiles . | . . . . Explosions 16 | . 2 14 . Melee . | . . . . Knockbacks . | . . . . Impact . | . . . . Kinetic . | . . . . Secondary . | . . . . Self-Inflicted Damage 184 | . 61 123 . Shots 5 | . 2 3 . Rammed . | . . . . Targets Rammed . | . . . . Kicked . | . . . . Crushed . | . . . . Highest Temperature 505 | . 29 505 . Average Temperature 144 | . 12 166 . Received Heat Transfer 684 | . 63 435 186 Effects 1 | . . 1 . Shutdowns 1 | . . 1 . Siege Activations . | . . . . Robots Corrupted . | . . . . Combat Hostiles . | . . . . Parts Fried . | . . . . Impact Corruptions . | . . . . Robots Melted . | . . . . Combat Hostiles . | . . . . Parts Melted 1 | . . 1 . Heat Transferred 458 | . . 458 . Parts Sabotaged . | . . . . Parts Stolen . | . . . . Parts Stripped . | . . . . Power Chain Reactions . | . . . . Alert | -11 -10 -9 -9 ------- Run | Yrd Mat Mat Sto Peak Influence 480 | . 108 480 197 Initial 174 | . . 45 174 Average 29 | . 53 265 176 Maximum Alert Level 2 | . . 2 . Low Security (%) 96 | 100 100 48 100 Level 1 . | . . 9 . Level 2 2 | . . 42 . Level 3 . | . . . . Level 4 . | . . . . Level 5 . | . . . . High Security . | . . . . Max Security . | . . . . Squads Dispatched 5 | . 1 3 1 Investigation 3 | . 1 1 1 Extermination . | . . . . Reinforcement 2 | . . 2 . Assault . | . . . . Garrison . | . . . . Intercept . | . . . . Searches Triggered . | . . . . Construction Impeded 1 | . . 1 . Haulers Reinforced . | . . . . Active Scanning Responses . | . . . . Cargo Convoy Interrupts . | . . . . Stealth | -11 -10 -9 -9 --------- Run | Yrd Mat Mat Sto Distress Signals 3 | . . 2 1 Communications Jammed . | . . . . Distress Signals . | . . . . Times Spotted 29 | . 5 18 6 Peak Tracking Total 8 | . 2 8 6 Tactical Retreats . | . . . . Traps | -11 -10 -9 -9 ------- Run | Yrd Mat Mat Sto Traps Triggered 2 | . 2 . . Indirectly . | . . . . Trap Hack Attempts . | . . . . Triggered . | . . . . Disarmed . | . . . . Reprogrammed . | . . . . Reused . | . . . . Traps Extracted . | . . . . Installed . | . . . . Triggered . | . . . . Machines | -11 -10 -9 -9 ---------- Run | Yrd Mat Mat Sto Machines Disabled 3 | . . 3 . Max in Single Turn 1 | . . 1 . Machines Repaired . | . . . . Machines Dismantled . | . . . . Machines Sabotaged . | . . . . Overloaded Fab Kills . | . . . . Hacking | -11 -10 -9 -9 --------- Run | Yrd Mat Mat Sto Machines Accessed 14 | . 9 2 3 Terminals 12 | . 7 2 3 Fabricators . | . . . . Repair Stations . | . . . . Recycling Units 2 | . 2 . . Scanalyzers . | . . . . Garrison Access . | . . . . Total Hacks 37 | . 19 11 7 Successful 13 | . 6 5 2 Failed 24 | . 13 6 5 Catastrophic 6 | . 4 1 1 Database Lockouts . | . . . . Manual 25 | . 14 6 5 Terminals 35 | . 17 11 7 Fabricators . | . . . . Repair Stations . | . . . . Recycling Units 2 | . 2 . . Scanalyzers . | . . . . Garrison Access . | . . . . Terminal Hacks 11 | . 4 5 2 Record 6 | . 2 4 . Open Door 1 | . . . 1 Branch Access Points 2 | . 1 . 1 Terminal Index 2 | . 1 1 . Fabricator Hacks . | . . . . Repair Station Hacks . | . . . . Recycling Unit Hacks 2 | . 2 . . Report Inventory 2 | . 2 . . Scanalyzer . | . . . . Garrison Access Hacks . | . . . . Unauthorized Hacks . | . . . . Terminals . | . . . . Fabricators . | . . . . Repair Stations . | . . . . Recycling Units . | . . . . Scanalyzers . | . . . . Garrison Access . | . . . . Data Cores Recovered . | . . . . Used . | . . . . Hacking Detections 13 | . 8 2 3 Full Trace Events 9 | . 6 1 2 Feedback Events . | . . . . Feedback Blocked . | . . . . Robot Schematics Acquired . | . . . . Robots Built . | . . . . Authchips . | . . . . Time . | . . . . Total Robot Build Rating . | . . . . Part Schematics Acquired . | . . . . Parts Built . | . . . . Authchips . | . . . . Time . | . . . . Total Part Build Rating . | . . . . Parts Repaired . | . . . . Time . | . . . . Parts Recycled . | . . . . Recycled Matter . | . . . . Retrieved Matter . | . . . . Retrieved Components . | . . . . Parts Scanalyzed . | . . . . Part Schematics Acquired . | . . . . Parts Damaged . | . . . . Bothacking | -11 -10 -9 -9 ------------ Run | Yrd Mat Mat Sto Used RIF Installer . | . . . . Robots Hacked . | . . . . Non-combat . | . . . . Combat . | . . . . Robot Hacks Applied . | . . . . Relay Couplers Released . | . . . . Fabnet Peak Effective % . | . . . . Robots Rewired . | . . . . Allies Hacked . | . . . . Hacks Repelled . | . . . . Allies | -11 -10 -9 -9 -------- Run | Yrd Mat Mat Sto Total Allies . | . . . . Largest Group . | . . . . Highest-Rated Group . | . . . . Highest-Rated Ally . | . . . . Total Orders . | . . . . Ally Attacks . | . . . . Total Damage . | . . . . Kills . | . . . . Allies Corrupted . | . . . . Allies Melted . | . . . . Intel | -11 -10 -9 -9 ------- Run | Yrd Mat Mat Sto Robot Analysis Total . | . . . . Derelict Logs Recovered . | . . . . Drone Launches 25 | . . . 25 Drone Recoveries 18 | . . . 18 Exploration | -11 -10 -9 -9 ------------- Run | Yrd Mat Mat Sto Turns Passed 6029 | 4697 775 391 166 Spaces Moved 2422 | 1752 435 170 65 Core 103 | 8 . 30 65 Treads 2308 | 1744 435 129 . Legs 11 | . . 11 . Wheels . | . . . . Hover . | . . . . Flight . | . . . . Fastest Speed 50 | 50 160 100 100 Average Speed 161 | 159 160 171 207 Slowest Speed 300 | 160 160 300 300 Overloaded Moves . | . . . . Propulsion Burnouts . | . . . . Robots Hopped . | . . . . Cave-ins Triggered . | . . . . Exploration Rate (%) 57 | 121 79 23 7 Regions Visited 3 Branch Regions 1 Pre-discovered Areas . | . . . . Known Exits Taken . | . . . . Unknown Exits Taken 3 | 1 1 1 . Scrap Searched . | . . . . Spaces Dug 12 | . 12 . . Terrain Destroyed 214 | . 53 161 . Melee . | . . . . Projectile . | . . . . AOE 214 | . 53 161 . Terrain Rammed . | . . . . Walls Destroyed . | . . . . Machines Disabled . | . . . . Actions | -11 -10 -9 -9 --------- Run | Yrd Mat Mat Sto Total 4474 | 3655 497 225 97 Wait 1937 | 1889 17 15 16 Move 2419 | 1751 434 169 65 Hop . | . . . . Pick Up 33 | 9 15 1 8 Fast Attach 1 | . 1 . . Attach 28 | 6 5 11 6 Detach 4 | . 1 3 . Swap 2 | . 1 1 . Drop 12 | . 10 . 2 Fire 38 | . 13 25 . Melee . | . . . . Ram . | . . . . Kick . | . . . . Crush . | . . . . Escape Stasis . | . . . . Rewire . | . . . . Trap . | . . . . Miscellaneous . | . . . . Route ------- -11/Scrapyard -10/Materials (discovered 3 exits: *Mat / *Min x2) -9/Materials (discovered 2 exits: [*Mat] / *Sto) -9/Storage (discovered 1 exit: Rec) History --------- Turn | Location | Event 15 | -11/Scrapyard | Discovered new exit (range 15) 4698 | -11/Scrapyard | Entered Materials 4699 | -10/Materials | Build established: Mutant 4821 | -10/Materials | Discovered new exit (range 15) 4892 | -10/Materials | Discovered new exit (range 16) 5211 | -10/Materials | Identified exit to Mines 5440 | -10/Materials | Discovered new exit (range 16) 5473 | -10/Materials | Entered another Materials area 5473 | -9/Materials | Evolved 2 slots: Utility x1, Weapon x1 5840 | -9/Materials | Core integrity fell below 50% 5846 | -9/Materials | Discovered new exit (range 16) 5863 | -9/Materials | Discovered new exit (range 16) 5864 | -9/Materials | Entered Storage 5865 | -9/Storage | Identified exit to Recycling 5882 | -9/Storage | Lost 12 parts (3n3u6w) 5972 | -9/Storage | Core integrity fell below 20% 6030 | -9/Storage | Destroyed by G-34 Mercenary with Small Laser Last Messages --------------- 06001_ Dropped Drone Bay. 06001_ Y-45 Defender destroyed. 06003_ Drone released from Drone Bay. 06003_ Drone retrieved by Drone Bay. 06004_ Drone released from Drone Bay. [Achievement: Release The Drones!] 06005_ Drone retrieved by Drone Bay. 06006_ Drone released from Drone Bay. 06013_ Drone destroyed. 06015_ Drone retrieved by Drone Bay. 06019_ Drone destroyed. 06020_ Drone retrieved by Drone Bay. 06021_ Drone released from Drone Bay. 06022_ Drone destroyed. 06025_ Drone retrieved by Drone Bay. 06025_ Acquired 11 matter. 06026_ Drone released from Drone Bay. 06028_ Drone retrieved by Drone Bay. 06030_ Drone released from Drone Bay. 06030_ Drone retrieved by Drone Bay. Map ----- +----------------------------------------------------+ | ?????????????????????????????????? | | ?????????????????????????????????? | | ?????????????????????????????????? | | ?????????????????????????????????? | | ?????????????????????????????????? | | ?????????????????????????????????? | | ?????????????????????????????????? | | ?????????????????????????????????? | | ?????????????????????????????????? | | ?????????????????????????????????? | | ?????????????????????????????????? | | ?????????????????????????????????? | | ?????????????????????????????????? | | ?????????????????????????????????? | | ?????????????????????????????????? | | ?????????????????????????????????? | | ?????????????????????????????????? | | ????????????????????????????? ???? | | ???????????????????????????? ???? | | ???????????????????????????? ???? | | ???????????????????????????? #???? | | ???????????????????????????? #???? | | ??????????????????????????? #???? | | ??????????????????????????? #???? | | ????????########??????????? #???? | | ????????#@ #T##?????????? #???? | | ????????# ngg #????????? #???? | | ????????# #Y%#????????? #???? | | ????????######n #????????? #???? | | ????????######;########### #??? | | ????????# ! = [ # | | ????????# % [%*=%* + | | ????????# !! = # """ | | ????????###T###" #############???" | | ??????????###?#"T#???????????????? | | ??????????????####???????????????? | | ?????????????????????????????????? | | ?????????????????????????????????? | | ?????????????????????????????????? | | ?????????????????????????????????? | | ?????????????????????????????????? | | ?????????????????????????????????? | | ?????????????????????????????????? | | ?????????????????????????????????? | | | | | | | | | | | | | +----------------------------------------------------+ Best States ------------- Heat Dissipation 28 Energy Generation 14 Energy Capacity 250 Matter Stores 300 Matter Capacity 300 Sight Range 16 Terrain Scan Density 10 Armor Coverage 300 Evasion (%) 45 Recoil Reduction 2 Item Schematics ----------------- None Robot Schematics ------------------ None Fabricated ------------ Nothing Alien Tech Used ----------------- None Achievements -------------- Let's See Who's Tougher Oops Release The Drones! Remodeling Challenges ------------ None Game ------ Seed GravitonCommMediator Manual? 0 Play Time 00:41:20 Cumulative 4.8 hours Start 2024.04.07 @ 20:04:24 End 2024.04.07 @ 21:10:51 Sessions 1 Manual Loads 0 Difficulty Rogue Special Mode None Game No. 4 Rogue 4 Adventurer 0 Explorer 0 Win Type - Total 0 Types 0/0/0/0/0/0/0/0/0 Lore% 2 Gallery% 5 Achievement% 6 Wizard Run 0 Options --------- Layout 1 ASCII 0 Keyboard 0 Movement Numpad Keybinds 0 Fullscreen 2 Font 20/SmallcapsGlow Map View 32x21 Zoom Use 40% Tactical HUD 1 Map Filters NONE Filters NONE Steam 1 RUN: 797ba62e-41ac-4668-bcbd-c991903acca7